bitfinex-derivatives/quotes_SOLF0:USTF0_20241017
["timestamp","ask_amount","ask_price","bid_price","bid_amount"]
[1729181248442,3.2774,152.57,152.54,3.24971834]
[1729181249243,3.2776,152.56,152.52,3.2782]
[1729181249444,3.2776,152.56,152.53,3.28152688]
[1729181250141,5.22,152.58,152.49,5.22]
[1729181250441,1.4141,152.57,152.5,1.6401225]
[1729181250642,1.4141,152.57,152.49,5.22]
[1729181250837,1.4141,152.57,152.5,1.64012647]
[1729181251041,3.2777,152.55,152.51,3.2785]
[1729181251639,3.278,152.54,152.51,3.2785]
[1729181255941,1.4141,152.57,152.51,3.2785]
[1729181256139,3.2782,152.53,152.51,3.2785]
[1729181259146,1.4141,152.57,152.48,3.279]
[1729181259344,2.8129,152.56,152.45,3.24422362]
[1729181259656,2.8129,152.56,152.42,1.3487]
[1729181259657,19.69,152.54,152.42,1.3487]
[1729181259840,24.77,152.53,152.42,3.304587]
[1729181260040,24.77,152.53,152.39,6.4304]
[1729181260251,24.77,152.53,152.34,1.3487]
[1729181260252,24.77,152.53,152.4,3.24948868]
[1729181260449,1.03556476,152.52,152.4,3.24948868]
[1729181260950,3.2805,152.43,152.38,3.2812]
[1729181261145,3.2805,152.43,152.39,1.64125294]
[1729181261146,5.08,152.43,152.39,1.64125294]
[1729181261349,5.08,152.43,152.35,4.33849362]
[1729181261544,5.08,152.43,152.36,1.64127835]
[1729181261856,2.7696,152.42,152.33,4.33849362]
[1729181262153,4.1703,152.42,152.34,4.933716]
[1729181262351,3.2816,152.37,152.33,4.34063662]
[1729181262546,8.3616,152.37,152.34,3.25380395]
[1729181262750,8.3616,152.37,152.33,4.34104625]
[1729181263051,8.3616,152.37,152.34,3.3273214]
[1729181263351,5.08,152.37,152.33,3.2823]
[1729181263545,5.08,152.37,152.34,3.21409139]
[1729181263746,5.08,152.37,152.35,3.282]
[1729181264053,5.08,152.37,152.36,3.3312541]
[1729181264350,5.1,152.4,152.36,6.6130541]
[1729181264547,4.1703,152.42,152.36,3.2818]
[1729181264855,5.1,152.41,152.36,3.2818]
[1729181265155,5.1,152.41,152.36,6.48928522]
[1729181265348,3.2811,152.4,152.36,6.48928522]
[1729181265656,3.2811,152.4,152.31,1.3504]
[1729181265657,5.1,152.41,152.31,1.3504]
[1729181265953,3.2814,152.38,152.31,1.3504]
[1729181266345,5.1,152.37,152.29,4.3354109]
[1729181266553,5.1,152.37,152.28,5.7238109]
[1729181266754,5.1,152.37,152.28,1.3884]
[1729181266944,5.1,152.37,152.31,3.2828]
[1729181267140,3.2821,152.35,152.31,3.2828]
[1729181268553,3.2823,152.34,152.3,3.2831]
[1729181269751,4.1703,152.42,152.28,1.3884]
[1729181269958,3.2823,152.34,152.3,3.283]
[1729181270455,3.2823,152.34,152.28,1.3884]
[1729181270456,3.2825,152.33,152.29,3.2833]
[1729181271552,5.1,152.35,152.28,1.3884]
[1729181271855,8.3822,152.35,152.28,1.3884]
[1729181272860,3.2823,152.34,152.3,3.2829]
[1729181273151,3.2823,152.34,152.28,1.3884]
[1729181273349,4.1703,152.42,152.28,1.3884]
[1729181273750,5.1,152.41,152.28,1.3884]
[1729181274053,3.282,152.35,152.28,1.3884]
[1729181274853,3.282,152.35,152.31,3.2827]
[1729181275055,4.1703,152.42,152.28,1.3884]
[1729181275249,5.1,152.41,152.28,1.3884]
[1729181275455,3.2818,152.36,152.32,3.2825]
[1729181278762,3.2818,152.36,152.32,3.2103665]
[1729181279261,3.2818,152.36,152.33,3.2824]
[1729181279461,3.2822,152.35,152.28,1.3884]
[1729181279763,3.2822,152.35,152.31,3.2827]
[1729181280066,5.1,152.37,152.28,1.3884]
[1729181280262,3.2819,152.36,152.32,3.2826]
[1729181280462,3.2819,152.36,152.28,1.3884]
[1729181280961,3.2819,152.36,152.32,3.2825]
[1729181281354,5.1,152.37,152.32,3.2825]
[1729181281553,3.2821,152.35,152.32,3.2825]
[1729181281861,5.1,152.37,152.28,1.3884]
[1729181282554,3.2824,152.34,152.3,3.2831]
[1729181283054,3.2824,152.34,152.28,1.3884]
[1729181283264,5.1,152.37,152.31,3.2828]
[1729181283662,3.2818,152.36,152.33,3.2823]
[1729181283859,5.1,152.37,152.28,1.3884]
[1729181284566,3.2821,152.35,152.31,3.2827]
[1729181286557,3.2825,152.33,152.28,1.3884]
[1729181287462,3.2825,152.33,152.29,3.2832]
[1729181287867,8.3825,152.33,152.29,3.2832]
[1729181288063,8.3825,152.33,152.3,3.283]
[1729181289264,5.1,152.33,152.31,3.2827]
[1729181289464,5.06,152.35,152.28,1.3884]
[1729181289963,8.3421,152.35,152.32,3.2826]
[1729181291860,3.2824,152.34,152.3,3.2829]
[1729181292669,3.2826,152.33,152.29,3.2831]
[1729181293264,3.2826,152.33,152.3,3.283]
[1729181294559,3.2824,152.34,152.31,3.2828]
[1729181294963,5.06,152.35,152.28,1.3884]
[1729181295168,10.7317,152.42,152.28,1.3884]
[1729181295370,5.06,152.41,152.29,1.3673]
[1729181295962,5.06,152.41,152.33,3.2823]
[1729181296170,5.06,152.41,152.34,3.337388]
[1729181296571,3.2818,152.37,152.34,3.337388]
[1729181296772,8.3418,152.37,152.34,3.337388]
[1729181297366,8.3418,152.37,152.34,6.619588]
[1729181297567,8.3418,152.37,152.34,3.2822]
[1729181297762,5.06,152.37,152.34,3.2822]
[1729181297969,5.06,152.37,152.31,3.2828]
[1729181298171,5.06,152.37,152.29,6.4273]
[1729181298575,5.06,152.37,152.35,3.282]
[1729181298872,5.06,152.37,152.35,6.5156282]
[1729181301782,3.2815,152.38,152.35,6.5156282]
[1729181302081,8.3415,152.38,152.35,6.5156282]
[1729181304189,3.2816,152.37,152.35,3.2336282]
[1729181306291,3.2816,152.37,152.34,3.2821]
[1729181306492,3.282,152.36,152.32,3.2825]
[1729181307085,3.2821,152.35,152.32,3.2825]
[1729181308590,3.2819,152.36,152.33,3.2824]
[1729181312599,5.06,152.38,152.28,1.3884]
[1729181313497,3.2827,152.32,152.29,3.2832]
[1729181314903,3.2827,152.32,152.26,9.73975309]
[1729181314904,2.9315,152.31,152.1,9.06817389]
[1729181315096,77.39685624,152.3,152.13,2.8972]
[1729181315287,77.39685624,152.3,152.14,3.2635104]
[1729181315288,3.2857,152.18,152.14,3.2635104]
[1729181315595,79.65831243,152.3,152.14,3.2635104]
[1729181315596,5.44,152.19,152.14,3.2635104]
[1729181315795,3.2859,152.17,152.14,3.2635104]
[1729181316105,3.2859,152.17,152.13,1.4257]
[1729181316106,5.44,152.19,152.08,1.4715]
[1729181316405,5.44,152.19,152.04,5.44]
[1729181316704,2.9315,152.18,152.04,5.44]
[1729181317794,3.2865,152.15,152.08,3.2877]
[1729181317997,8.7265,152.15,152.08,3.24173295]
[1729181318191,8.7265,152.15,152.09,3.2876]
[1729181318497,8.7265,152.15,152.09,6.55760197]
[1729181319699,3.2866,152.14,152.09,6.55760197]
[1729181319903,5.44,152.15,152.09,6.55750197]
[1729181320096,5.44,152.15,152.09,3.2875]
[1729181320297,8.7265,152.15,152.09,3.2875]
[1729181320492,5.44,152.15,152.09,3.24741929]
[1729181320689,8.7265,152.15,152.04,5.44]
[1729181321302,5.44,152.15,152.02,1.4184]
[1729181321500,5.44,152.15,152.03,6.64845568]
[1729181321700,5.44,152.15,152.03,5.44]
[1729181322090,8.7264,152.15,152.1,3.2873]
[1729181322404,8.7264,152.15,152.1,6.55082574]
[1729181322799,3.2864,152.15,152.11,3.2872]
[1729181323503,3.2864,152.15,152.11,6.60793443]
[1729181324504,3.2866,152.14,152.11,3.32073443]
[1729181324705,3.2866,152.14,152.1,3.2874]
[1729181325207,3.2866,152.14,152.1,6.59333727]
[1729181325409,3.2865,152.15,152.1,6.59333727]
[1729181325606,5.44,152.16,152.1,3.30593727]
[1729181325808,5.44,152.16,152.09,3.2876]
[1729181326202,5.44,152.16,152.08,2.7733]
[1729181326406,5.44,152.16,152.08,1.3719]
[1729181326601,5.44,152.16,152.03,1.4099]
[1729181326797,5.44,152.16,152.03,2.8184]
[1729181327107,5.44,152.16,152.07,3.2879]
[1729181327311,3.2875,152.1,152.07,6.6158637]
[1729181328001,8.7272,152.12,152.08,3.2877]
[1729181328200,5.44,152.12,152.08,3.2877]
[1729181328807,3.2873,152.11,152.08,6.5400346]
[1729181329306,5.44,152.12,152.1,3.2874]
[1729181329611,3.2869,152.13,152.11,3.24641588]
[1729181329911,8.7269,152.13,152.11,3.24641588]
[1729181331415,8.7269,152.13,152.1,3.2874]
[1729181331808,3.2872,152.11,152.07,3.2879]
[1729181332125,3.2872,152.11,152.07,3.27206365]
[1729181332411,3.2872,152.11,152.08,3.2878]
[1729181332611,3.2872,152.11,152.07,3.2954097]
[1729181332612,3.2874,152.11,152.07,3.2954097]
[1729181332802,3.2874,152.11,152.03,2.8184]
[1729181333009,3.2874,152.11,152.07,3.2879]
[1729181333208,5.44,152.13,152.07,3.25430751]
[1729181333412,5.44,152.13,152.03,2.8184]
[1729181333807,3.2873,152.11,152.03,2.8184]
[1729181334215,3.2873,152.11,152.07,3.2879]
[1729181334512,5.44,152.13,152.07,3.30922004]
[1729181334712,5.44,152.13,152.09,3.2875]
[1729181334713,8.7269,152.13,152.09,3.2875]
[1729181335014,5.44,152.13,152.09,3.31941648]
[1729181335210,3.2873,152.11,152.03,8.2584]
[1729181335411,3.2873,152.11,152.08,3.2877]
[1729181335612,1.4743,152.17,152.09,3.31941648]
[1729181335807,3.2871,152.12,152.09,3.2876]
[1729181336114,8.7271,152.12,152.09,6.56952752]
[1729181336808,5.44,152.12,152.09,3.28192752]
[1729181337011,5.44,152.12,152.03,8.2584]
[1729181337408,8.727,152.12,152.03,8.2584]
[1729181337710,3.287,152.12,152.03,8.2584]
[1729181338817,3.287,152.12,152.09,3.2874]
[1729181339013,3.287,152.12,152.09,6.60265225]
[1729181339218,3.287,152.12,152.09,3.2874]
[1729181339714,3.287,152.12,152.09,3.31821171]
[1729181339914,3.287,152.12,152.1,3.2874]
[1729181340812,5.44,152.13,152.09,3.22153603]
[1729181341017,3.2872,152.11,152.09,3.2876]
[1729181341812,3.2872,152.11,152.09,6.60767418]
[1729181342012,3.2872,152.11,152.09,3.2876]
[1729181342520,3.2872,152.11,152.09,6.55538695]
[1729181343211,8.7269,152.13,152.1,3.2872]
[1729181343428,5.44,152.13,152.03,8.2584]
[1729181343914,3.2868,152.13,152.11,3.2871]
[1729181344921,1.4743,152.17,152.12,3.2869]
[1729181345113,5.5,152.16,152.12,3.2869]
[1729181345514,8.7865,152.15,152.12,3.2869]
[1729181345720,8.7865,152.15,152.12,6.58494024]
[1729181345913,8.7865,152.15,152.12,3.2869]
[1729181346521,8.7865,152.15,152.12,6.55830602]
[1729181348415,8.7865,152.15,152.03,8.2584]
[1729181348416,5.5,152.16,152.03,2.8184]
[1729181348615,6.939,152.16,152.03,2.8184]
[1729181349015,3.2873,152.11,152.08,3.2878]
[1729181350828,5.5,152.13,152.07,3.2808383]
[1729181351020,5.5,152.13,152.03,2.8184]
[1729181351422,3.2871,152.12,152.09,3.2876]
[1729181351924,5.5,152.13,152.09,3.2876]
[1729181352117,3.287,152.12,152.09,3.2876]
[1729181352313,5.5,152.13,152.08,3.2878]
[1729181353623,3.2874,152.11,152.08,3.2878]
[1729181353927,5.5,152.13,152.09,3.2876]
[1729181354429,3.2871,152.12,152.09,3.2876]
[1729181368341,5.5,152.13,152.03,2.8184]
[1729181368543,2.853,152.12,152.03,2.8184]
[1729181368741,2.853,152.12,152.03,1.4099]
[1729181369339,2.853,152.12,151.99,1.4107]
[1729181369545,3.2882,152.07,152.03,3.2888]
[1729181369847,5.5,152.07,152.03,3.2888]
[1729181370046,5.5,152.07,152.04,3.2886]
[1729181370249,5.5,152.07,151.99,1.4107]
[1729181370737,3.2883,152.06,152.03,3.2888]
[1729181370942,5.5,152.07,151.99,1.4107]
[1729181371740,8.7882,152.07,152.04,3.2886]
[1729181372450,3.2883,152.06,152.04,3.2886]
[1729181372948,3.2883,152.06,152.03,3.2889]
[1729181374348,3.2883,152.06,152.04,3.2887]
[1729181375254,5.5,152.07,152.04,3.2887]
[1729181375547,8.7882,152.07,152.04,3.2887]
[1729181375744,5.5,152.07,152.04,3.2887]
[1729181376247,8.7881,152.07,152.04,3.2887]
[1729181377639,3.2881,152.07,152.04,3.2887]
[1729181377948,8.6681,152.07,152.04,3.2887]
[1729181378945,3.2883,152.06,152.03,3.2888]
[1729181381449,8.6682,152.07,152.01,3.2893]
[1729181381650,8.6682,152.07,151.99,1.4107]
[1729181381957,8.6682,152.07,152.04,3.2887]
[1729181382253,5.38,152.07,151.99,1.4107]
[1729181382648,8.6682,152.07,151.99,1.4107]
[1729181383159,8.6682,152.07,152.04,3.2886]
[1729181384553,3.2882,152.07,152.04,3.2886]
[1729181384755,8.6682,152.07,152.04,3.2886]
[1729181385155,5.38,152.07,151.99,1.4107]
[1729181385356,5.38,152.07,152.05,3.2884]
[1729181385556,2.853,152.12,152.05,3.27532894]
[1729181385757,2.853,152.12,151.99,1.4107]
[1729181385758,3.2876,152.1,152.07,3.2879]
[1729181388060,5.38,152.11,152.05,3.35921052]
[1729181388357,2.853,152.12,152.02,5.38]
[1729181388358,1.4008,152.12,152.02,5.38]
[1729181388560,5.38,152.14,152.02,5.38]
[1729181389049,3.2868,152.13,152.09,3.2874]
[1729181389252,3.2868,152.13,152.09,6.50748123]
[1729181389663,3.2868,152.13,152.09,3.2874]
[1729181390163,3.2868,152.13,152.08,3.33190845]
[1729181390361,3.2868,152.13,152.1,3.2874]
[1729181390661,5.38,152.14,152.08,3.33585426]
[1729181390858,5.38,152.14,152.08,3.2878]
[1729181391058,5.38,152.14,152.08,3.28653163]
[1729181391255,3.2871,152.12,152.05,3.2884]
[1729181391455,3.2871,152.12,152.05,3.26614494]
[1729181391762,3.2871,152.12,152.02,5.38]
[1729181391763,5.38,152.14,152.02,5.38]
[1729181392464,3.2874,152.11,152.07,3.2879]
[1729181393554,3.2874,152.11,152.08,3.2877]
[1729181396558,5.38,152.13,152.06,3.25099927]
[1729181396758,5.38,152.13,152.02,5.38]
[1729181397257,3.287,152.12,152.09,3.2875]
[1729181397857,3.287,152.12,152.02,5.38]
[1729181398469,3.287,152.12,152.09,3.2875]
[1729181399762,3.287,152.12,152.1,3.2874]
[1729181400060,3.2873,152.11,152.02,5.38]
[1729181400460,5.38,152.13,152.02,5.38]
[1729181400461,5.38,152.13,152.08,3.2877]
[1729181400666,3.2873,152.11,152.08,6.64273386]
[1729181400867,3.2873,152.11,152.08,3.2877]
[1729181401369,3.2873,152.11,152.08,6.55494534]
[1729181405175,5.38,152.13,152.02,5.38]
[1729181405367,3.2875,152.1,152.07,3.288]
[1729181405566,3.2875,152.1,152.07,6.49639087]
[1729181405769,5.38,152.13,152.0,109.6939745]
[1729181405963,25.07,152.13,152.0,109.6939745]
[1729181406171,25.07,152.13,152.01,5.18]
[1729181406572,3.2876,152.1,152.05,3.2883]
[1729181406876,5.18,152.09,152.05,6.64816318]
[1729181407175,3.2879,152.08,152.05,6.64816318]
[1729181410866,5.18,152.09,151.99,1.4107]
[1729181411068,1.3939,152.08,151.99,1.4107]
[1729181411463,3.2882,152.07,152.04,3.2886]
[1729181412775,1.3939,152.08,151.99,1.4107]
[1729181412963,3.2884,152.06,151.99,1.4107]
[1729181413578,3.2884,152.06,152.04,3.2886]
[1729181413962,3.2884,152.06,151.99,1.4107]
[1729181414177,3.2884,152.06,152.03,3.2888]
[1729181415075,1.3939,152.08,151.99,1.4107]
[1729181415278,3.2877,152.09,151.99,1.4107]
[1729181415472,5.18,152.09,151.99,1.4107]
[1729181415892,3.2881,152.07,152.05,3.2884]
[1729181416178,3.2881,152.07,152.05,6.50791802]
[1729181416378,3.288,152.08,152.06,3.2883]
[1729181417667,5.18,152.09,152.06,3.2883]
[1729181417978,5.18,152.11,152.05,3.28958621]
[1729181418277,5.18,152.11,152.02,5.18]
[1729181418476,8.4674,152.11,152.08,3.2878]
[1729181418675,8.4674,152.11,152.08,6.51873544]
[1729181420385,8.4674,152.11,152.07,3.288]
[1729181420679,8.4674,152.11,152.07,6.5182776]
[1729181420881,5.18,152.11,152.07,3.2302776]
[1729181421081,5.18,152.11,152.08,3.2877]
[1729181421377,2.816,152.13,152.08,6.55876311]
[1729181421580,3.2873,152.11,152.08,6.55876311]
[1729181422483,8.467,152.12,152.09,3.2875]
[1729181423475,3.2866,152.14,152.11,3.2872]
[1729181423679,5.18,152.15,152.06,5.18]
[1729181423981,5.18,152.15,152.07,1.3462]
[1729181424576,3.2867,152.14,152.1,3.2873]
[1729181424774,24.87,152.15,151.99,1.4107]
[1729181425175,40.11806776,152.15,151.97,1.3462]
[1729181425379,28.1353464,152.15,151.98,4.75886082]
[1729181425977,19.69,152.13,151.98,4.75886082]
[1729181426284,3.2886,152.05,152.0,3.2896]
[1729181426670,5.7,152.07,151.98,4.75886082]
[1729181427186,5.7,152.07,152.01,3.2892]
[1729181428182,5.7,152.07,151.98,4.75886082]
[1729181428987,8.9881,152.07,151.98,4.75886082]
[1729181429377,5.7,152.07,151.98,4.75886082]
[1729181430174,3.2883,152.06,151.98,4.75886082]
[1729181430884,5.7,152.07,151.98,3.32456082]
[1729181431081,3.2895,152.01,151.9,4.3147]
[1729181431289,3.2895,152.01,151.98,3.29]
[1729181431485,5.7,152.03,151.98,3.29]
[1729181431486,5.7,152.03,151.98,3.24824001]
[1729181431785,2.7184,152.05,152.0,3.2894]
[1729181431987,3.2888,152.04,152.01,3.3015278]
[1729181432684,6.0069,152.05,152.02,3.289]
[1729181432886,4.6277,152.05,152.02,3.289]
[1729181433080,1.3392,152.05,152.02,3.289]
[1729181433284,4.6278,152.05,152.01,6.5907278]
[1729181433593,1.3392,152.05,152.01,3.3015278]
[1729181433796,1.3392,152.05,152.02,3.289]
[1729181434791,1.3392,152.05,152.01,3.28211285]
[1729181435085,5.7,152.06,151.96,4.3147]
[1729181435482,5.7,152.06,152.03,3.2888]
[1729181436387,5.7,152.06,152.02,6.5507105]
[1729181436587,5.7,152.06,152.02,3.2891]
[1729181436887,8.9885,152.06,151.96,4.3147]
[1729181437490,8.9885,152.06,152.02,3.289]
[1729181437682,8.9885,152.06,152.02,6.49763771]
[1729181437878,8.9885,152.06,152.02,3.20863771]
[1729181437879,5.7,152.06,152.02,3.20863771]
[1729181438087,5.7,152.08,151.99,5.7]
[1729181438385,5.7,152.08,151.99,9.00054714]
[1729181439092,8.988,152.08,152.05,3.2884]
[1729181440886,3.2882,152.07,152.03,3.2887]
[1729181441192,3.2882,152.07,151.99,9.00054714]
[1729181441691,3.2883,152.06,152.03,3.2887]
[1729181442979,3.2883,152.06,151.99,9.00054714]
[1729181443182,3.2883,152.06,152.04,3.2887]
[1729181444396,3.2881,152.07,151.99,9.00054714]
[1729181445883,5.7,152.11,151.99,9.00054714]
[1729181446194,13.13956578,152.19,151.99,9.00054714]
[1729181446491,5.7,152.16,151.99,3.30054714]
[1729181446694,5.7,152.16,152.0,5.7]
[1729181446901,3.288,152.08,152.05,3.2884]
[1729181449302,3.2881,152.07,152.05,3.2884]
[1729181449597,3.2881,152.07,152.0,8.91677631]
[1729181449799,3.2881,152.07,152.04,3.2887]
[1729181451399,2.824,152.1,152.0,8.91677631]
[1729181451600,3.2881,152.07,152.0,8.91677631]
[1729181452395,3.2881,152.07,152.04,3.2885]
[1729181453310,3.2884,152.06,152.03,3.2889]
[1729181454009,4.2006,152.1,152.03,3.2889]
[1729181454298,3.2885,152.06,152.03,3.2889]
[1729181454504,4.2006,152.1,152.02,3.289]
[1729181454703,3.2886,152.05,152.0,3.21677631]
[1729181454894,5.7,152.07,151.99,5.7]
[1729181455301,8.9882,152.07,151.99,5.7]
[1729181455605,8.9882,152.07,152.04,3.2885]
[1729181456409,3.2884,152.06,152.03,3.2888]
[1729181456906,3.2884,152.06,151.99,8.98980263]
[1729181459303,8.9882,152.07,152.04,3.2886]
[1729181460899,3.2883,152.06,152.04,3.2886]
[1729181461099,5.7,152.07,152.02,3.2889]
[1729181461600,3.2889,152.04,151.97,5.7]
[1729181462312,3.2893,152.02,151.96,8.6292]
[1729181462609,5.7,152.07,151.96,2.9292]
[1729181462801,3.2893,152.02,151.99,3.2897]
[1729181463199,5.7,152.07,151.98,3.24024735]
[1729181463409,5.7,152.07,151.98,3.2899]
[1729181463814,5.7,152.07,151.92,4.2402]
[1729181464015,3.2898,151.99,151.96,3.2903]
[1729181465004,3.2898,151.99,151.93,5.7]
[1729181465005,1.4425,152.01,151.92,2.7972]
[1729181465208,2.9172,152.01,151.92,2.7972]
[1729181465410,2.9172,152.01,151.83,71.06]
[1729181465411,1.3794,152.0,151.89,5.7]
[1729181465609,3.2904,151.97,151.93,3.2909]
[1729181465810,8.9904,151.97,151.92,3.33486902]
[1729181466111,8.9904,151.97,151.89,5.7]
[1729181466317,8.9904,151.97,151.94,3.2908]
[1729181466714,5.7,151.97,151.92,3.35099381]
[1729181467016,5.7,151.97,151.89,5.7]
[1729181467222,3.2905,151.96,151.93,3.291]
[1729181468416,5.7,151.97,151.83,80.4434]
[1729181468417,3.2911,151.93,151.83,80.4434]
[1729181468618,5.7,151.97,151.9,3.2916]
[1729181468812,5.7,151.97,151.91,3.28044651]
[1729181469318,5.7,151.97,151.83,73.8572]
[1729181469524,5.7,151.97,151.84,5.7]
[1729181469909,3.2914,151.92,151.84,5.7]
[1729181470418,3.2919,151.9,151.86,3.2926]
[1729181470613,5.7,151.93,151.84,5.7]
[1729181470814,2.8189,151.92,151.83,1.4612]
[1729181471221,3.292,151.89,151.86,3.2925]
[1729181471615,3.292,151.89,151.85,3.2927]
[1729181471813,3.2924,151.88,151.82,3.21402723]
[1729181472115,5.7,151.89,151.81,1.4487]
[1729181472427,3.2926,151.87,151.83,3.2931]
[1729181472924,3.2926,151.87,151.84,3.293]
[1729181474214,3.2926,151.86,151.83,3.2932]
[1729181474930,3.2926,151.86,151.83,6.63762102]
[1729181475926,3.2925,151.87,151.84,3.2929]
[1729181476815,5.7,151.89,151.84,3.2929]
[1729181476816,3.2924,151.88,151.84,3.2929]
[1729181478719,5.7,151.9,151.83,3.34442102]
[1729181479023,2.8189,151.92,151.79,11.75179366]
[1729181479223,5.7,151.91,151.88,3.292]
[1729181479430,5.7,151.91,151.8,6.5877]
[1729181479820,5.7,151.91,151.89,3.2919]
[1729181480431,71.12,151.95,151.87,3.33970552]
[1729181480624,2.7242,151.97,151.84,1.4645]
[1729181480935,5.7,151.96,151.85,1.3538]
[1729181481232,3.2908,151.95,151.85,1.3538]
[1729181481430,25.45,151.96,151.86,1.4073]
[1729181481725,3.27230612,151.95,151.84,1.4645]
[1729181481931,1.4061,151.94,151.83,5.7]
[1729181482129,1.4061,151.94,151.86,3.2924]
[1729181482130,3.2919,151.9,151.86,3.2924]
[1729181482826,3.2919,151.9,151.83,5.7]
[1729181483027,3.2919,151.9,151.87,3.2924]
[1729181483430,5.7,151.91,151.83,5.7]
[1729181483622,5.7,151.91,151.89,3.2919]
[1729181484231,5.7,151.91,151.87,3.2923]
[1729181484435,5.7,151.91,151.88,3.25078605]
[1729181484631,8.9917,151.91,151.88,3.25078605]
[1729181485134,8.9917,151.91,151.83,5.7]
[1729181485432,8.9917,151.91,151.86,3.2925]
[1729181485641,8.9917,151.91,151.83,5.7]
[1729181486339,3.2918,151.9,151.85,3.2928]
[1729181486528,3.2918,151.9,151.83,5.7]
[1729181487321,3.2918,151.9,151.86,3.2925]
[1729181488222,3.2918,151.9,151.87,3.2924]
[1729181488426,3.2918,151.9,151.88,3.2472835]
[1729181489726,5.7,151.91,151.88,3.2472835]
[1729181489928,5.7,151.91,151.83,5.7]
[1729181490227,5.54,151.94,151.83,5.7]
[1729181490529,19.75,152.01,151.83,5.7]
[1729181490530,5.54,151.95,151.83,5.7]
[1729181491129,5.54,151.95,151.89,3.2918]
[1729181491335,5.54,151.95,151.89,6.50779492]
[1729181492840,3.2913,151.93,151.89,6.50779492]
[1729181493136,3.2913,151.93,151.89,3.21599492]
[1729181493338,3.2911,151.93,151.83,5.7]
[1729181493541,5.54,151.95,151.83,5.7]
[1729181494035,3.2913,151.92,151.83,5.7]
[1729181494837,3.2913,151.92,151.89,3.2918]
[1729181495036,3.2913,151.92,151.89,6.61043037]
[1729181495236,3.2913,151.92,151.89,3.2918]
[1729181495839,3.2913,151.92,151.9,3.2917]
[1729181496033,3.2913,151.92,151.89,3.36011737]
[1729181496234,3.2913,151.92,151.83,5.7]
[1729181496436,3.2913,151.92,151.89,3.2918]
[1729181496639,3.2913,151.92,151.89,3.24631287]
[1729181496842,3.2913,151.92,151.83,5.7]
[1729181497339,25.29,151.95,151.83,5.7]
[1729181497536,3.2919,151.9,151.83,5.7]
[1729181498740,5.54,151.91,151.81,2.7982]
[1729181498940,5.54,151.91,151.82,5.54]
[1729181499134,5.54,151.91,151.85,3.2927]
[1729181499539,3.2923,151.88,151.82,5.54]
[1729181500446,25.29,151.91,151.85,3.2927]
[1729181500639,3.2924,151.87,151.85,3.2927]
[1729181501840,3.2924,151.88,151.85,3.2927]
[1729181503447,25.29,151.91,151.85,3.2927]
[1729181503448,3.2924,151.87,151.85,3.2927]
[1729181504244,25.29,151.91,151.76,6.5895]
[1729181504245,1.3903,151.9,151.76,6.5895]
[1729181504443,2.7414,151.9,151.77,2.775]
[1729181504642,2.7414,151.9,151.77,6.08923302]
[1729181505749,19.75,151.89,151.77,6.08923302]
[1729181505937,3.2933,151.83,151.8,3.2938]
[1729181506139,25.29,151.84,151.65,267.80755494]
[1729181506440,1.4355,151.88,151.66,6.75108425]
[1729181506441,25.29,151.83,151.66,6.75108425]